[Event "Titled Tuesday Blitz June 28 Late 2022"]
[White "Hamitevici, Vladimir"]
[Black "Yoo, Christopher Woojin"]
[WhiteFideId "13902393"]
[BlackFideId "30909694"]
[WhiteElo "2359"]
[BlackElo "2105"]
[Result "0-1"]
[Round "03"]
[TimeControl "180+1"]
[Date "2022.06.28"]
[WhiteClock "0:00:04"]
[BlackClock "0:00:03"]

1. c4 {[%clk 0:03:00]}  e6 {[%clk 0:02:58]} 2. Nc3 {[%clk 0:02:59]}  d5 {[%clk 0:02:58]} 3. d4 {[%clk 0:02:59]}  Nf6 {[%clk 0:02:58]} 4. cxd5 {[%clk 0:02:55]}  exd5 {[%clk 0:02:58]} 5. Bg5 {[%clk 0:02:54]}  Bb4 {[%clk 0:02:58]} 6. Rc1 {[%clk 0:02:49]}  h6 {[%clk 0:02:38]} 7. Bh4 {[%clk 0:02:44]}  Nbd7 {[%clk 0:02:20]} 8. e3 {[%clk 0:02:31]}  O-O {[%clk 0:01:47]} 9. Bd3 {[%clk 0:02:27]}  c5 {[%clk 0:01:41]} 10. Ne2 {[%clk 0:02:22]}  cxd4 {[%clk 0:01:27]} 11. exd4 {[%clk 0:02:17]}  Bd6 {[%clk 0:01:09]} 12. Nxd5 {[%clk 0:01:53]}  g5 {[%clk 0:01:08]} 13. Nxf6+ {[%clk 0:01:53]}  Nxf6 {[%clk 0:01:09]} 14. Bg3 {[%clk 0:01:53]}  Qa5+ {[%clk 0:01:06]} 15. Nc3 {[%clk 0:01:46]}  Re8+ {[%clk 0:01:05]} 16. Kf1 {[%clk 0:01:46]}  Bxg3 {[%clk 0:00:58]} 17. hxg3 {[%clk 0:01:47]}  Kg7 {[%clk 0:00:57]} 18. Qa4 {[%clk 0:01:33]}  Qb6 {[%clk 0:00:51]} 19. Nd5 {[%clk 0:00:44]}  Qxb2 {[%clk 0:00:49]} 20. Rb1 {[%clk 0:00:45]}  Qd2 {[%clk 0:00:34]} 21. Nxf6 {[%clk 0:00:45]}  Qxd3+ {[%clk 0:00:33]} 22. Kg1 {[%clk 0:00:46]}  Qxb1+ {[%clk 0:00:31]} 23. Kh2 {[%clk 0:00:46]}  Qxh1+ {[%clk 0:00:31]} 24. Kxh1 {[%clk 0:00:47]}  Re1+ {[%clk 0:00:32]} 25. Kh2 {[%clk 0:00:44]}  Kxf6 {[%clk 0:00:33]} 26. Qb4 {[%clk 0:00:41]}  Re8 {[%clk 0:00:32]} 27. Qd6+ {[%clk 0:00:41]}  Kg7 {[%clk 0:00:33]} 28. d5 {[%clk 0:00:37]}  Bf5 {[%clk 0:00:31]} 29. Qc7 {[%clk 0:00:38]}  Rad8 {[%clk 0:00:30]} 30. Qxb7 {[%clk 0:00:37]}  Rd7 {[%clk 0:00:31]} 31. Qb5 {[%clk 0:00:34]}  Red8 {[%clk 0:00:30]} 32. Qa5 {[%clk 0:00:30]}  Rxd5 {[%clk 0:00:24]} 33. Qxa7 {[%clk 0:00:30]}  Rd2 {[%clk 0:00:22]} 34. Qa3 {[%clk 0:00:20]}  Be6 {[%clk 0:00:18]} 35. Qa5 {[%clk 0:00:19]}  Bxa2 {[%clk 0:00:16]} 36. f4 {[%clk 0:00:16]}  R8d5 {[%clk 0:00:09]} 37. Qc3+ {[%clk 0:00:15]}  R2d4 {[%clk 0:00:08]} 38. fxg5 {[%clk 0:00:14]}  hxg5 {[%clk 0:00:09]} 39. g4 {[%clk 0:00:10]}  Bc4 {[%clk 0:00:09]} 40. Qf3 {[%clk 0:00:06]}  Bb5 {[%clk 0:00:07]} 41. Qb3 {[%clk 0:00:05]}  Bd7 {[%clk 0:00:06]} 42. Qb2 {[%clk 0:00:03]}  Bxg4 {[%clk 0:00:06]} 43. Kg3 {[%clk 0:00:04]}  Be6 {[%clk 0:00:07]} 44. Qa1 {[%clk 0:00:04]}  f6 {[%clk 0:00:07]} 45. Qa7+ {[%clk 0:00:05]}  Bf7 {[%clk 0:00:08]} 46. Qa8 {[%clk 0:00:06]}  Rd3+ {[%clk 0:00:08]} 47. Kh2 {[%clk 0:00:07]}  R5d4 {[%clk 0:00:08]} 48. Qa7 {[%clk 0:00:07]}  Rh4+ {[%clk 0:00:08]} 49. Kg1 {[%clk 0:00:06]}  Rd1+ {[%clk 0:00:09]} 50. Kf2 {[%clk 0:00:06]}  Rf4+ {[%clk 0:00:10]} 51. Kg3 {[%clk 0:00:06]}  Rd3+ {[%clk 0:00:07]} 52. Kh2 {[%clk 0:00:07]}  Rf1 {[%clk 0:00:08]} 53. Qa6 {[%clk 0:00:05]}  Rdd1 {[%clk 0:00:07]} 54. Kg3 {[%clk 0:00:05]}  Bd5 {[%clk 0:00:06]} 55. Qa7+ {[%clk 0:00:05]}  Kg6 {[%clk 0:00:07]} 56. Qb8 {[%clk 0:00:05]}  Rd3+ {[%clk 0:00:06]} 57. Kh2 {[%clk 0:00:06]}  Rf4 {[%clk 0:00:03]} 58. Qe8+ {[%clk 0:00:05]}  Kg7 {[%clk 0:00:04]} 59. Qe7+ {[%clk 0:00:05]}  Bf7 {[%clk 0:00:03]} 60. Qe2 {[%clk 0:00:05]}  Rdd4 {[%clk 0:00:03]} 61. Qb2 {[%clk 0:00:05]}  Rde4 {[%clk 0:00:02]} 62. Kg3 {[%clk 0:00:05]}  Rg4+ {[%clk 0:00:02]} 63. Kh2 {[%clk 0:00:06]}  Rh4+ {[%clk 0:00:03]} 64. Kg3 {[%clk 0:00:05]}  Reg4+ {[%clk 0:00:03]} 65. Kf2 {[%clk 0:00:06]}  Bd5 {[%clk 0:00:03]} 66. Qb5 {[%clk 0:00:03]}  Rxg2+ {[%clk 0:00:03]} 67. Ke3 {[%clk 0:00:03]}  Re4+ {[%clk 0:00:03]} 68. Kd3 {[%clk 0:00:03]}  Bc4+ {[%clk 0:00:03]} 69. Kxe4 {[%clk 0:00:04]}  Bxb5 {[%clk 0:00:03]} 0-1


[Site "https://www.chess.com"]

[Event "Titled Tuesday Blitz June 28 Late 2022"]
[White "Howell, David W L"]
[Black "Glavina, Pablo"]
[WhiteFideId "410608"]
[BlackFideId "100234"]
[WhiteElo "2559"]
[BlackElo "2369"]
[Result "1-0"]
[Round "03"]
[TimeControl "180+1"]
[Date "2022.06.28"]
[WhiteClock "0:00:05"]
[BlackClock "0:00:05"]

1. Nh3 {[%clk 0:02:50]}  d5 {[%clk 0:02:55]} 2. Na3 {[%clk 0:02:51]}  e5 {[%clk 0:02:49]} 3. d4 {[%clk 0:02:47]}  exd4 {[%clk 0:02:45]} 4. Qxd4 {[%clk 0:02:43]}  Nf6 {[%clk 0:02:46]} 5. Bg5 {[%clk 0:02:42]}  Be7 {[%clk 0:02:45]} 6. O-O-O {[%clk 0:02:41]}  c5 {[%clk 0:02:44]} 7. Qh4 {[%clk 0:02:26]}  Nc6 {[%clk 0:02:35]} 8. Nf4 {[%clk 0:02:14]}  O-O {[%clk 0:02:35]} 9. f3 {[%clk 0:01:50]}  d4 {[%clk 0:02:31]} 10. e4 {[%clk 0:01:42]}  h6 {[%clk 0:02:26]} 11. Bxf6 {[%clk 0:01:27]}  Bxf6 {[%clk 0:02:27]} 12. Qf2 {[%clk 0:01:25]}  Be6 {[%clk 0:02:19]} 13. Nxe6 {[%clk 0:01:23]}  fxe6 {[%clk 0:02:20]} 14. Kb1 {[%clk 0:01:20]}  a6 {[%clk 0:02:17]} 15. f4 {[%clk 0:01:13]}  b5 {[%clk 0:02:14]} 16. c4 {[%clk 0:01:11]}  b4 {[%clk 0:02:12]} 17. Nc2 {[%clk 0:01:10]}  e5 {[%clk 0:02:05]} 18. f5 {[%clk 0:01:06]}  a5 {[%clk 0:01:56]} 19. Ne1 {[%clk 0:01:06]}  a4 {[%clk 0:01:32]} 20. Bd3 {[%clk 0:01:05]}  a3 {[%clk 0:01:27]} 21. b3 {[%clk 0:01:05]}  Kf7 {[%clk 0:01:13]} 22. h4 {[%clk 0:01:03]}  Ke8 {[%clk 0:01:09]} 23. g4 {[%clk 0:00:59]}  g5 {[%clk 0:01:04]} 24. fxg6 {[%clk 0:00:57]}  Kd7 {[%clk 0:00:55]} 25. Qf5+ {[%clk 0:00:55]}  Kd6 {[%clk 0:00:53]} 26. Nf3 {[%clk 0:00:54]}  Ne7 {[%clk 0:00:52]} 27. Qh5 {[%clk 0:00:47]}  Bg7 {[%clk 0:00:51]} 28. g5 {[%clk 0:00:47]}  Rh8 {[%clk 0:00:43]} 29. Rdf1 {[%clk 0:00:42]}  Qe8 {[%clk 0:00:42]} 30. Rhg1 {[%clk 0:00:39]}  Qxg6 {[%clk 0:00:36]} 31. Qxg6+ {[%clk 0:00:32]}  Nxg6 {[%clk 0:00:37]} 32. gxh6 {[%clk 0:00:31]}  Rxh6 {[%clk 0:00:37]} 33. Ng5 {[%clk 0:00:32]}  Nh8 {[%clk 0:00:29]} 34. Nf7+ {[%clk 0:00:12]}  Nxf7 {[%clk 0:00:28]} 35. Rxf7 {[%clk 0:00:13]}  Bf6 {[%clk 0:00:27]} 36. h5 {[%clk 0:00:11]}  Re8 {[%clk 0:00:19]} 37. Be2 {[%clk 0:00:10]}  Re7 {[%clk 0:00:18]} 38. Rf8 {[%clk 0:00:09]}  Bh4 {[%clk 0:00:09]} 39. Kc2 {[%clk 0:00:06]}  Rf6 {[%clk 0:00:08]} 40. Rxf6+ {[%clk 0:00:05]}  Bxf6 {[%clk 0:00:09]} 41. Rg6 {[%clk 0:00:05]}  Rf7 {[%clk 0:00:09]} 42. h6 {[%clk 0:00:06]}  Ke7 {[%clk 0:00:09]} 43. Bg4 {[%clk 0:00:05]}  Rh7 {[%clk 0:00:09]} 44. Bf5 {[%clk 0:00:05]}  Rh8 {[%clk 0:00:09]} 45. Kd3 {[%clk 0:00:05]}  Kf7 {[%clk 0:00:09]} 46. h7 {[%clk 0:00:03]}  Ke7 {[%clk 0:00:05]} 47. Rg8 {[%clk 0:00:03]}  Kf7 {[%clk 0:00:06]} 48. Ke2 {[%clk 0:00:04]}  Rxg8 {[%clk 0:00:06]} 49. Be6+ {[%clk 0:00:04]}  Kxe6 {[%clk 0:00:05]} 50. hxg8=Q+ {[%clk 0:00:05]} 1-0


[Site "https://www.chess.com"]

[Event "Titled Tuesday Blitz June 28 Late 2022"]
[White "Huber, Benedikt"]
[Black "Arnold, Ken"]
[WhiteFideId "12923583"]
[BlackFideId "2056836"]
[WhiteElo "1979"]
[BlackElo "2256"]
[Result "0-1"]
[Round "03"]
[TimeControl "180+1"]
[Date "2022.06.29"]
[WhiteClock "0:02:14"]
[BlackClock "0:01:37"]

1. d4 {[%clk 0:02:49]}  Nf6 {[%clk 0:02:58]} 2. c4 {[%clk 0:02:48]}  e6 {[%clk 0:02:58]} 3. Nc3 {[%clk 0:02:48]}  Bb4 {[%clk 0:02:58]} 4. f3 {[%clk 0:02:48]}  d5 {[%clk 0:02:56]} 5. a3 {[%clk 0:02:47]}  Bxc3+ {[%clk 0:02:54]} 6. bxc3 {[%clk 0:02:48]}  O-O {[%clk 0:02:54]} 7. cxd5 {[%clk 0:02:48]}  exd5 {[%clk 0:02:53]} 8. e3 {[%clk 0:02:49]}  c5 {[%clk 0:02:53]} 9. Bd3 {[%clk 0:02:49]}  Re8 {[%clk 0:02:52]} 10. Ne2 {[%clk 0:02:50]}  Qc7 {[%clk 0:02:49]} 11. O-O {[%clk 0:02:50]}  b6 {[%clk 0:02:44]} 12. Ng3 {[%clk 0:02:50]}  Bb7 {[%clk 0:02:42]} 13. Ra2 {[%clk 0:02:47]}  Nbd7 {[%clk 0:02:41]} 14. Re2 {[%clk 0:02:47]}  Rac8 {[%clk 0:02:39]} 15. e4 {[%clk 0:02:47]}  cxd4 {[%clk 0:02:35]} 16. cxd4 {[%clk 0:02:47]}  Nf8 {[%clk 0:01:57]} 17. e5 {[%clk 0:02:44]}  N6d7 {[%clk 0:01:56]} 18. f4 {[%clk 0:02:39]}  Ne6 {[%clk 0:01:48]} 19. Be3 {[%clk 0:02:36]}  Qc3 {[%clk 0:01:43]} 20. Bb1 {[%clk 0:02:24]}  Ba6 {[%clk 0:01:39]} 21. f5 {[%clk 0:02:19]}  Bxe2 {[%clk 0:01:38]} 22. Nxe2 {[%clk 0:02:14]}  Qxe3+ {[%clk 0:01:37]} 0-1


[Site "https://www.chess.com"]

[Event "Titled Tuesday Blitz June 28 Late 2022"]
[White "Ingebretsen, Jens E"]
[Black "Balint, Vilmos"]
[WhiteFideId "1522965"]
[BlackFideId "718050"]
[WhiteElo "2036"]
[BlackElo "2059"]
[Result "1/2-1/2"]
[Round "03"]
[TimeControl "180+1"]
[Date "2022.06.29"]
[WhiteClock "0:00:26"]
[BlackClock "0:00:26"]

1. g3 {[%clk 0:03:00]}  g6 {[%clk 0:02:58]} 2. Bg2 {[%clk 0:03:01]}  Bg7 {[%clk 0:02:57]} 3. c4 {[%clk 0:03:01]}  f5 {[%clk 0:02:57]} 4. Nc3 {[%clk 0:03:02]}  Nf6 {[%clk 0:02:57]} 5. d3 {[%clk 0:03:03]}  O-O {[%clk 0:02:58]} 6. e4 {[%clk 0:03:03]}  d6 {[%clk 0:02:57]} 7. Nge2 {[%clk 0:03:03]}  Nc6 {[%clk 0:02:56]} 8. O-O {[%clk 0:03:04]}  e5 {[%clk 0:02:50]} 9. h3 {[%clk 0:03:04]}  Be6 {[%clk 0:02:49]} 10. Be3 {[%clk 0:03:04]}  Qd7 {[%clk 0:02:49]} 11. exf5 {[%clk 0:03:03]}  Bxf5 {[%clk 0:02:43]} 12. g4 {[%clk 0:03:03]}  Be6 {[%clk 0:02:43]} 13. f4 {[%clk 0:03:03]}  exf4 {[%clk 0:02:42]} 14. Nxf4 {[%clk 0:03:04]}  Bf7 {[%clk 0:02:42]} 15. Ncd5 {[%clk 0:02:54]}  Ne5 {[%clk 0:02:29]} 16. Nxf6+ {[%clk 0:02:49]}  Bxf6 {[%clk 0:02:29]} 17. Nd5 {[%clk 0:02:50]}  Bg7 {[%clk 0:02:28]} 18. Bh6 {[%clk 0:02:44]}  Bxd5 {[%clk 0:02:18]} 19. Bxd5+ {[%clk 0:02:41]}  Kh8 {[%clk 0:02:18]} 20. Qd2 {[%clk 0:02:29]}  c6 {[%clk 0:02:12]} 21. Bg2 {[%clk 0:02:25]}  Bxh6 {[%clk 0:02:04]} 22. Qxh6 {[%clk 0:02:26]}  Qg7 {[%clk 0:02:04]} 23. Qxg7+ {[%clk 0:02:21]}  Kxg7 {[%clk 0:02:04]} 24. Be4 {[%clk 0:02:17]}  b6 {[%clk 0:01:45]} 25. b3 {[%clk 0:02:14]}  Rac8 {[%clk 0:01:40]} 26. d4 {[%clk 0:02:12]}  Nd7 {[%clk 0:01:39]} 27. Rxf8 {[%clk 0:02:12]}  Nxf8 {[%clk 0:01:39]} 28. Kf2 {[%clk 0:02:11]}  Ne6 {[%clk 0:01:38]} 29. Ke3 {[%clk 0:02:11]}  c5 {[%clk 0:01:38]} 30. dxc5 {[%clk 0:02:07]}  dxc5 {[%clk 0:01:39]} 31. Bd5 {[%clk 0:02:04]}  Nd4 {[%clk 0:01:38]} 32. Rf1 {[%clk 0:02:02]}  Rc7 {[%clk 0:01:39]} 33. h4 {[%clk 0:01:58]}  Re7+ {[%clk 0:01:39]} 34. Kd3 {[%clk 0:01:58]}  h6 {[%clk 0:01:36]} 35. g5 {[%clk 0:01:57]}  h5 {[%clk 0:01:26]} 36. Be4 {[%clk 0:01:35]}  Re6 {[%clk 0:01:01]} 37. b4 {[%clk 0:01:32]}  Nc2 {[%clk 0:00:40]} 38. bxc5 {[%clk 0:01:22]}  Nb4+ {[%clk 0:00:37]} 39. Ke3 {[%clk 0:01:04]}  bxc5 {[%clk 0:00:36]} 40. Rd1 {[%clk 0:01:05]}  Re7 {[%clk 0:00:35]} 41. Kf4 {[%clk 0:01:03]}  Rf7+ {[%clk 0:00:33]} 42. Kg3 {[%clk 0:01:02]}  Re7 {[%clk 0:00:32]} 43. Kf3 {[%clk 0:01:01]}  Rf7+ {[%clk 0:00:33]} 44. Ke3 {[%clk 0:00:57]}  Nxa2 {[%clk 0:00:33]} 45. Rd6 {[%clk 0:00:57]}  Nc3 {[%clk 0:00:31]} 46. Rxg6+ {[%clk 0:00:57]}  Kf8 {[%clk 0:00:31]} 47. Rc6 {[%clk 0:00:52]}  Re7 {[%clk 0:00:30]} 48. Rc8+ {[%clk 0:00:40]}  Kg7 {[%clk 0:00:30]} 49. Rxc5 {[%clk 0:00:34]}  Nxe4 {[%clk 0:00:30]} 50. Ra5 {[%clk 0:00:34]}  Nxg5+ {[%clk 0:00:30]} 51. Kf4 {[%clk 0:00:35]}  Ne4 {[%clk 0:00:30]} 52. Rxh5 {[%clk 0:00:34]}  Nd6 {[%clk 0:00:27]} 53. c5 {[%clk 0:00:33]}  Ne8 {[%clk 0:00:27]} 54. Rg5+ {[%clk 0:00:33]}  Kf7 {[%clk 0:00:27]} 55. Rf5+ {[%clk 0:00:34]}  Nf6 {[%clk 0:00:27]} 56. c6 {[%clk 0:00:34]}  Ke6 {[%clk 0:00:27]} 57. Re5+ {[%clk 0:00:33]}  Kd6 {[%clk 0:00:27]} 58. Rxe7 {[%clk 0:00:28]}  Kxe7 {[%clk 0:00:27]} 59. c7 {[%clk 0:00:28]}  Kd7 {[%clk 0:00:27]} 60. Kf5 {[%clk 0:00:27]}  Ne8 {[%clk 0:00:26]} 61. Kg6 {[%clk 0:00:26]}  a5 {[%clk 0:00:26]} 62. h5 {[%clk 0:00:26]}  Nxc7 {[%clk 0:00:25]} 63. h6 {[%clk 0:00:26]}  Ne6 {[%clk 0:00:25]} 64. Kf6 {[%clk 0:00:23]}  Nf8 {[%clk 0:00:23]} 65. Kf7 {[%clk 0:00:24]}  Nh7 {[%clk 0:00:23]} 66. Kg7 {[%clk 0:00:24]}  a4 {[%clk 0:00:23]} 67. Kxh7 {[%clk 0:00:24]}  a3 {[%clk 0:00:24]} 68. Kg8 {[%clk 0:00:24]}  a2 {[%clk 0:00:25]} 69. h7 {[%clk 0:00:25]}  a1=Q {[%clk 0:00:25]} 70. h8=Q {[%clk 0:00:26]}  Qa8+ {[%clk 0:00:25]} 71. Kh7 {[%clk 0:00:26]}  Qxh8+ {[%clk 0:00:26]} 72. Kxh8 {[%clk 0:00:26]} 1/2-1/2


[Site "https://www.chess.com"]

[Event "Titled Tuesday Blitz June 28 Late 2022"]
[White "Janturin, Artur"]
[Black "Adla, Diego"]
[WhiteFideId "4130022"]
[BlackFideId "100072"]
[WhiteElo "2404"]
[BlackElo "2377"]
[Result "0-1"]
[Round "03"]
[TimeControl "180+1"]
[Date "2022.06.29"]
[WhiteClock "0:00:21"]
[BlackClock "0:00:13"]

1. b3 {[%clk 0:03:00]}  d5 {[%clk 0:02:54]} 2. Bb2 {[%clk 0:03:00]}  Bf5 {[%clk 0:02:54]} 3. g3 {[%clk 0:02:58]}  e6 {[%clk 0:02:54]} 4. Bg2 {[%clk 0:02:59]}  Nf6 {[%clk 0:02:54]} 5. d3 {[%clk 0:02:59]}  Bd6 {[%clk 0:02:54]} 6. Nd2 {[%clk 0:02:59]}  Nbd7 {[%clk 0:02:44]} 7. e4 {[%clk 0:02:36]}  Bg4 {[%clk 0:02:42]} 8. f3 {[%clk 0:02:15]}  Bh5 {[%clk 0:02:41]} 9. Ne2 {[%clk 0:02:11]}  e5 {[%clk 0:02:25]} 10. g4 {[%clk 0:01:32]}  Bg6 {[%clk 0:02:24]} 11. h4 {[%clk 0:01:32]}  h6 {[%clk 0:01:37]} 12. Ng3 {[%clk 0:01:22]}  c6 {[%clk 0:01:37]} 13. Qe2 {[%clk 0:01:18]}  Qe7 {[%clk 0:01:33]} 14. Ndf1 {[%clk 0:00:50]}  d4 {[%clk 0:01:22]} 15. Nd2 {[%clk 0:00:44]}  Bb4 {[%clk 0:01:07]} 16. a3 {[%clk 0:00:39]}  Bxd2+ {[%clk 0:00:58]} 17. Qxd2 {[%clk 0:00:38]}  c5 {[%clk 0:00:59]} 18. Ke2 {[%clk 0:00:23]}  O-O-O {[%clk 0:00:58]} 19. Qa5 {[%clk 0:00:16]}  Kb8 {[%clk 0:00:57]} 20. Bc1 {[%clk 0:00:15]}  b6 {[%clk 0:00:52]} 21. Qe1 {[%clk 0:00:14]}  Nf8 {[%clk 0:00:46]} 22. Bh3 {[%clk 0:00:13]}  Ne6 {[%clk 0:00:45]} 23. Bd2 {[%clk 0:00:12]}  Nf4+ {[%clk 0:00:35]} 24. Kd1 {[%clk 0:00:12]}  Nd7 {[%clk 0:00:27]} 25. Ne2 {[%clk 0:00:12]}  Nxh3 {[%clk 0:00:20]} 26. Rxh3 {[%clk 0:00:11]}  h5 {[%clk 0:00:21]} 27. g5 {[%clk 0:00:11]}  f5 {[%clk 0:00:21]} 28. Ng3 {[%clk 0:00:10]}  f4 {[%clk 0:00:18]} 29. Ne2 {[%clk 0:00:09]}  Qe6 {[%clk 0:00:18]} 30. Rh1 {[%clk 0:00:09]}  Kb7 {[%clk 0:00:18]} 31. Nc1 {[%clk 0:00:09]}  Nb8 {[%clk 0:00:18]} 32. a4 {[%clk 0:00:09]}  Nc6 {[%clk 0:00:18]} 33. Qf1 {[%clk 0:00:08]}  a6 {[%clk 0:00:18]} 34. Qh3 {[%clk 0:00:08]}  Qe7 {[%clk 0:00:18]} 35. Ke2 {[%clk 0:00:08]}  Bf7 {[%clk 0:00:18]} 36. Na2 {[%clk 0:00:08]}  Be6 {[%clk 0:00:18]} 37. Qg2 {[%clk 0:00:08]}  g6 {[%clk 0:00:18]} 38. Rhb1 {[%clk 0:00:08]}  a5 {[%clk 0:00:18]} 39. Qf1 {[%clk 0:00:07]}  Qd7 {[%clk 0:00:17]} 40. Qd1 {[%clk 0:00:07]}  Bh3 {[%clk 0:00:17]} 41. Qg1 {[%clk 0:00:07]}  Be6 {[%clk 0:00:16]} 42. Qh2 {[%clk 0:00:07]}  Ra8 {[%clk 0:00:16]} 43. Nc1 {[%clk 0:00:07]}  Rhf8 {[%clk 0:00:16]} 44. Kf2 {[%clk 0:00:07]}  Kc7 {[%clk 0:00:16]} 45. Ne2 {[%clk 0:00:08]}  Kd6 {[%clk 0:00:16]} 46. Ng1 {[%clk 0:00:08]}  Qb7 {[%clk 0:00:15]} 47. Kg2 {[%clk 0:00:08]}  b5 {[%clk 0:00:14]} 48. Ne2 {[%clk 0:00:08]}  Nb4 {[%clk 0:00:13]} 49. Bxb4 {[%clk 0:00:08]}  axb4 {[%clk 0:00:13]} 50. axb5 {[%clk 0:00:08]}  Qxb5 {[%clk 0:00:13]} 51. Qg1 {[%clk 0:00:08]}  Ra3 {[%clk 0:00:12]} 52. Qc1 {[%clk 0:00:07]}  Rfa8 {[%clk 0:00:11]} 53. Qb2 {[%clk 0:00:06]}  Qa5 {[%clk 0:00:11]} 54. Rxa3 {[%clk 0:00:06]}  bxa3 {[%clk 0:00:11]} 55. Qa2 {[%clk 0:00:06]}  Qd2 {[%clk 0:00:11]} 56. Kf1 {[%clk 0:00:06]}  Qe3 {[%clk 0:00:11]} 57. Ng1 {[%clk 0:00:06]}  Qd2 {[%clk 0:00:08]} 58. Re1 {[%clk 0:00:06]}  Ra7 {[%clk 0:00:05]} 59. Re2 {[%clk 0:00:06]}  Qc3 {[%clk 0:00:05]} 60. Kf2 {[%clk 0:00:06]}  Qb4 {[%clk 0:00:04]} 61. Re1 {[%clk 0:00:06]}  Ra8 {[%clk 0:00:04]} 62. Ne2 {[%clk 0:00:06]}  Bh3 {[%clk 0:00:03]} 63. Rd1 {[%clk 0:00:06]}  Be6 {[%clk 0:00:03]} 64. Kf1 {[%clk 0:00:06]}  Kc6 {[%clk 0:00:03]} 65. Kf2 {[%clk 0:00:06]}  Kb5 {[%clk 0:00:03]} 66. Kf1 {[%clk 0:00:06]}  Ra7 {[%clk 0:00:02]} 67. Kf2 {[%clk 0:00:06]}  Bd7 {[%clk 0:00:02]} 68. Kf1 {[%clk 0:00:07]}  Bc6 {[%clk 0:00:02]} 69. Kf2 {[%clk 0:00:07]}  Kb6 {[%clk 0:00:03]} 70. Kf1 {[%clk 0:00:08]}  Kc7 {[%clk 0:00:03]} 71. Kf2 {[%clk 0:00:09]}  Kd8 {[%clk 0:00:03]} 72. Kf1 {[%clk 0:00:10]}  Ke7 {[%clk 0:00:04]} 73. Kf2 {[%clk 0:00:11]}  Kf8 {[%clk 0:00:05]} 74. Kf1 {[%clk 0:00:11]}  Kg7 {[%clk 0:00:05]} 75. Kf2 {[%clk 0:00:12]}  Kh8 {[%clk 0:00:06]} 76. Kf1 {[%clk 0:00:13]}  Kh7 {[%clk 0:00:07]} 77. Kf2 {[%clk 0:00:13]}  Kg7 {[%clk 0:00:07]} 78. Kf1 {[%clk 0:00:14]}  Kf7 {[%clk 0:00:07]} 79. Kf2 {[%clk 0:00:15]}  Ke8 {[%clk 0:00:08]} 80. Kf1 {[%clk 0:00:15]}  Kd7 {[%clk 0:00:09]} 81. Kf2 {[%clk 0:00:16]}  Kc8 {[%clk 0:00:10]} 82. Kf1 {[%clk 0:00:16]}  Kb7 {[%clk 0:00:10]} 83. Kf2 {[%clk 0:00:17]}  Ka8 {[%clk 0:00:11]} 84. Kf1 {[%clk 0:00:18]}  Ra6 {[%clk 0:00:11]} 85. Kf2 {[%clk 0:00:19]}  Ra5 {[%clk 0:00:12]} 86. Kf1 {[%clk 0:00:19]}  Ka7 {[%clk 0:00:12]} 87. Kf2 {[%clk 0:00:19]}  Kb6 {[%clk 0:00:13]} 88. Kf1 {[%clk 0:00:20]}  Kc7 {[%clk 0:00:14]} 89. Kf2 {[%clk 0:00:20]}  Ra6 {[%clk 0:00:14]} 90. Nc1 {[%clk 0:00:20]}  Qb8 {[%clk 0:00:14]} 91. Qb1 {[%clk 0:00:21]}  Qc8 {[%clk 0:00:14]} 92. Na2 {[%clk 0:00:21]}  Qh3 {[%clk 0:00:13]} 93. Rh1 {[%clk 0:00:22]}  Qg3+ {[%clk 0:00:13]} 94. Ke2 {[%clk 0:00:22]}  Qg2+ {[%clk 0:00:13]} 95. Ke1 {[%clk 0:00:21]}  Qxh1+ {[%clk 0:00:13]} 0-1


[Site "https://www.chess.com"]

[Event "Titled Tuesday Blitz June 28 Late 2022"]
[White "Jaskolka, Tomasz"]
[Black "Chernobay, Artem"]
[WhiteFideId "1170791"]
[BlackFideId "4167406"]
[WhiteElo "2456"]
[BlackElo "2643"]
[Result "1-0"]
[Round "03"]
[TimeControl "180+1"]
[Date "2022.06.29"]
[WhiteClock "0:00:11"]
[BlackClock "0:00:02"]

1. d4 {[%clk 0:03:00]}  Nf6 {[%clk 0:02:59]} 2. Bf4 {[%clk 0:03:00]}  d5 {[%clk 0:02:57]} 3. e3 {[%clk 0:03:00]}  c5 {[%clk 0:02:57]} 4. c3 {[%clk 0:03:00]}  Nc6 {[%clk 0:02:56]} 5. Nd2 {[%clk 0:03:01]}  e6 {[%clk 0:02:54]} 6. Ngf3 {[%clk 0:03:00]}  Bd6 {[%clk 0:02:54]} 7. Bg3 {[%clk 0:03:01]}  O-O {[%clk 0:02:53]} 8. Bd3 {[%clk 0:03:01]}  b6 {[%clk 0:02:50]} 9. e4 {[%clk 0:03:01]}  Be7 {[%clk 0:02:46]} 10. e5 {[%clk 0:02:59]}  Nh5 {[%clk 0:02:39]} 11. Ng5 {[%clk 0:02:59]}  Bxg5 {[%clk 0:02:30]} 12. Qxh5 {[%clk 0:02:59]}  g6 {[%clk 0:02:30]} 13. Qe2 {[%clk 0:02:57]}  h5 {[%clk 0:02:00]} 14. Nf3 {[%clk 0:02:41]}  h4 {[%clk 0:01:40]} 15. Nxg5 {[%clk 0:02:28]}  Qxg5 {[%clk 0:01:41]} 16. f4 {[%clk 0:02:27]}  Qh6 {[%clk 0:01:41]} 17. Bf2 {[%clk 0:02:18]}  cxd4 {[%clk 0:01:38]} 18. cxd4 {[%clk 0:02:17]}  Nb4 {[%clk 0:01:26]} 19. Be3 {[%clk 0:02:10]}  Nxd3+ {[%clk 0:01:20]} 20. Qxd3 {[%clk 0:02:11]}  Qh5 {[%clk 0:01:16]} 21. b4 {[%clk 0:02:02]}  h3 {[%clk 0:01:10]} 22. O-O {[%clk 0:01:34]}  Bd7 {[%clk 0:01:03]} 23. Rf3 {[%clk 0:01:18]}  hxg2 {[%clk 0:01:01]} 24. Kxg2 {[%clk 0:01:16]}  Rac8 {[%clk 0:00:48]} 25. Rg1 {[%clk 0:01:08]}  Rc4 {[%clk 0:00:43]} 26. Rg3 {[%clk 0:00:59]}  Rfc8 {[%clk 0:00:36]} 27. Kh1 {[%clk 0:00:57]}  Be8 {[%clk 0:00:32]} 28. Bd2 {[%clk 0:00:50]}  Rc2 {[%clk 0:00:29]} 29. Rg5 {[%clk 0:00:46]}  Qh6 {[%clk 0:00:20]} 30. f5 {[%clk 0:00:39]}  exf5 {[%clk 0:00:14]} 31. e6 {[%clk 0:00:27]}  fxe6 {[%clk 0:00:10]} 32. Qe3 {[%clk 0:00:15]}  Qg7 {[%clk 0:00:02]} 33. Qxe6+ {[%clk 0:00:13]}  Bf7 {[%clk 0:00:02]} 34. Rxg6 {[%clk 0:00:11]} 1-0


[Site "https://www.chess.com"]

[Event "Titled Tuesday Blitz June 28 Late 2022"]
[White "Korchmar, Vasiliy"]
[Black "Martinez Alcantara, Jose Eduardo"]
[WhiteFideId "24131750"]
[BlackFideId "3805662"]
[WhiteElo "2370"]
[BlackElo "2703"]
[Result "0-1"]
[Round "03"]
[TimeControl "180+1"]
[Date "2022.06.28"]
[WhiteClock "0:00:05"]
[BlackClock "0:00:28"]

1. e4 {[%clk 0:03:00]}  c5 {[%clk 0:02:59]} 2. Nf3 {[%clk 0:03:00]}  d6 {[%clk 0:03:00]} 3. d4 {[%clk 0:03:00]}  cxd4 {[%clk 0:03:01]} 4. Nxd4 {[%clk 0:03:00]}  Nf6 {[%clk 0:03:01]} 5. Nc3 {[%clk 0:03:01]}  Nc6 {[%clk 0:03:02]} 6. Bg5 {[%clk 0:03:00]}  e6 {[%clk 0:03:03]} 7. Bb5 {[%clk 0:03:00]}  Qb6 {[%clk 0:02:49]} 8. Bxf6 {[%clk 0:02:58]}  gxf6 {[%clk 0:02:47]} 9. Qd3 {[%clk 0:02:57]}  Bd7 {[%clk 0:02:46]} 10. Bxc6 {[%clk 0:02:56]}  bxc6 {[%clk 0:02:45]} 11. O-O-O {[%clk 0:02:55]}  a5 {[%clk 0:02:32]} 12. Kb1 {[%clk 0:02:40]}  Rb8 {[%clk 0:02:16]} 13. b3 {[%clk 0:02:22]}  Be7 {[%clk 0:01:53]} 14. Qg3 {[%clk 0:02:07]}  Qb4 {[%clk 0:01:45]} 15. Rhe1 {[%clk 0:01:26]}  a4 {[%clk 0:01:38]} 16. Nf5 {[%clk 0:00:55]}  exf5 {[%clk 0:01:30]} 17. Qg7 {[%clk 0:00:55]}  Rf8 {[%clk 0:01:18]} 18. exf5 {[%clk 0:00:56]}  Qxc3 {[%clk 0:01:10]} 19. Re3 {[%clk 0:00:52]}  Qxe3 {[%clk 0:00:55]} 20. fxe3 {[%clk 0:00:53]}  axb3 {[%clk 0:00:56]} 21. axb3 {[%clk 0:00:51]}  Bxf5 {[%clk 0:00:56]} 22. Kb2 {[%clk 0:00:32]}  Kd7 {[%clk 0:00:54]} 23. Qg3 {[%clk 0:00:18]}  Be6 {[%clk 0:00:52]} 24. Qf4 {[%clk 0:00:16]}  f5 {[%clk 0:00:50]} 25. Kb1 {[%clk 0:00:07]}  Ra8 {[%clk 0:00:45]} 26. e4 {[%clk 0:00:04]}  fxe4 {[%clk 0:00:44]} 27. Qxe4 {[%clk 0:00:05]}  Bf6 {[%clk 0:00:40]} 28. c3 {[%clk 0:00:05]}  Rfb8 {[%clk 0:00:28]} 0-1


[Site "https://www.chess.com"]